Cogmind - Beta 13 *** ADVENTURER MODE // 2024.07.06 @ 15:49:18 Player: yub Result: Self-destructed Performance ------------- Evolutions (9) 4500 Regions Visited (14) 2800 Robots Destroyed (50) 250 Value Destroyed (1623) 1623 Prototype IDs (22) 440 Alien Tech Used (0) 0 Bonus (2500) 2500 TOTAL SCORE: 12113 Bonus ------- Scanned by Researcher 500 Acquired SGEMP 2000 Cogmind --------- Core Integrity 790/1600 Matter 260/300 Energy 72/100 System Corruption 6% Temperature Cool (0) Movement Core (100) Ox1 Location -1/Access Parts ------- > --- POWER (2) -------- (None) > --- PROPULSION (6) --- (None) > --- UTILITY (15) ----- Enhanced Optical Array Advanced Signal Interpreter Advanced Signal Interpreter Advanced Hacking Suite > --- WEAPON (2) ------- Enhanced Quantum Rifle > --- INVENTORY (5) ---- Advanced Weight Redist. System Peak State ------------ > --- POWER ------------ Antimatter Reactor > --- PROPULSION ------- Improved Cesium-ion Thruster Field Propulsion Array Impulse Thruster Array > --- UTILITY ---------- Coolant Network Small Storage Unit Quantum Shading Machine Enhanced Optical Array Advanced Sensor Array Advanced Signal Interpreter Experimental ECM Suite Advanced Reaction Control System Cloaking Device Advanced Hacking Suite Experimental Hacking Suite > --- WEAPON ----------- Vibroblade > --- INVENTORY -------- Light Fission Core Xenon Bombardment Thruster Impulse Thruster Array Transmission Jammer Advanced ECM Suite Cloaking Device Vibroblade [Rating: 131] Favorites ----------- Power Light Ion Engine Engine Light Ion Engine Power Core Micro Nuclear Core Reactor Antimatter Reactor Propulsion Improved VTOL Module Treads Light Treads Leg Aluminum Leg Flight Unit Improved VTOL Module Utility Small Storage Unit Device Advanced Sensor Array Storage Small Storage Unit Processor Improved Signal Interpreter Hackware Advanced Hacking Suite Protection Light Armor Plating Weapon Assault Rifle Energy Gun Small Laser Ballistic Gun Assault Rifle Ballistic Cannon Flak Cannon Special Weapon Plasma Cutter Impact Weapon Great Maul Slashing Weapon Great Axe Piercing Weapon Enhanced Force Lance Build | -11 -10 -9 -9 -8 -7 -6 -5 -4 -4 -4 -3 -3 -2 -1 ------- Run | Yrd Mat Mat Sto Mat Fac Fac Fac Fac Upp Upp Res Tes Res Acc Slots Evolved 18 | . . 2 . 2 2 2 2 2 . . 2 . 2 2 Power 1 | . . . . . . . 1 . . . . . . . Propulsion 4 | . . . . 2 1 . . . . . . . 1 . Utility 13 | . . 2 . . 1 2 1 2 . . 2 . 1 2 Weapon . | . . . . . . . . . . . . . . . Parts Attached 111 | 6 4 3 10 10 11 10 11 17 1 . 4 9 5 10 Power 11 | 1 . . . . 1 1 1 2 1 . . 1 1 2 Engine 4 | 1 . . . . . 1 . 1 1 . . . . . Core 3 | . . . . . 1 . 1 . . . . 1 . . Reactor 4 | . . . . . . . . 1 . . . . 1 2 Propulsion 29 | 2 2 . 3 4 8 1 2 2 . . 1 1 1 2 Treads 4 | . 2 . 2 . . . . . . . . . . . Leg 2 | 2 . . . . . . . . . . . . . . Wheel . | . . . . . . . . . . . . . . . Hover . | . . . . . . . . . . . . . . . Flight 23 | . . . 1 4 8 1 2 2 . . 1 1 1 2 Utility 52 | 1 1 2 3 5 1 7 8 11 . . 2 7 3 1 Device 33 | . . . 2 1 . 6 6 7 . . 2 7 2 . Storage 3 | 1 1 . . 1 . . . . . . . . . . Processor 6 | . . . 1 2 . . . 2 . . . . . 1 Hackware 6 | . . . . 1 1 1 2 1 . . . . . . Protection 4 | . . 2 . . . . . 1 . . . . 1 . Artifact . | . . . . . . . . . . . . . . . Weapon 19 | 2 1 1 4 1 1 1 . 2 . . 1 . . 5 Energy Gun 2 | 1 . . . . . . . . . . . . . 1 Energy Cannon . | . . . . . . . . . . . . . . . Ballistic Gun 4 | 1 1 . 2 . . . . . . . . . . . Ballistic Cannon 3 | . . 1 1 . . . . . . . . . . 1 Launcher . | . . . . . . . . . . . . . . . Special Weapon 2 | . . . 1 1 . . . . . . . . . . Impact Weapon 2 | . . . . . . 1 . 1 . . . . . . Slashing Weapon 4 | . . . . . 1 . . 1 . . 1 . . 1 Piercing Weapon 2 | . . . . . . . . . . . . . . 2 Special Melee Weapon . | . . . . . . . . . . . . . . . Unidentified Prototypes 14 | . . . 1 . 2 1 2 1 . . 2 4 . 1 Parts Lost 32 | . . . . . . 3 . 3 . . . 14 . 12 Power 7 | . . . . . . 1 . . . . . 3 . 3 Propulsion 9 | . . . . . . 1 . 1 . . . 3 . 4 Utility 14 | . . . . . . . . 2 . . . 8 . 4 Weapon 2 | . . . . . . 1 . . . . . . . 1 Highest Loss Streak 11 | . . . . . . 2 . 3 . . . 11 . 11 To Critical Strikes 1 | . . . . . . . . . . . . . . 1 Average Slot Usage (%) 82 | . 85 77 95 93 96 98 93 85 83 84 71 65 33 39 Engine 5 | . 14 11 11 9 1 . 2 2 4 5 4 1 . . Core 1 | . . . . . 5 5 3 . . . . 1 . . Reactor 1 | . . . . . . . . 2 5 5 4 3 . 3 Treads 6 | . 5 22 22 3 . . . . . . . . . . Leg 1 | . 22 . . . . . . . . . . . . . Flight 15 | . . . . 28 34 33 29 24 21 21 14 12 4 7 Device 10 | . . . 2 9 7 18 17 18 21 21 19 18 5 5 Storage 6 | . 14 11 11 9 7 6 5 5 5 5 4 3 . . Processor 6 | . . . 6 7 7 6 5 8 10 10 9 9 8 9 Hackware 7 | . . . . 5 15 13 16 15 10 10 9 9 8 7 Protection 4 | . . 11 19 3 . . . 1 . . . . 1 2 Ballistic Gun 5 | . 23 15 11 9 3 . . . . . . . . . Ballistic Cannon 2 | . . 6 10 1 . . . . . . . . . . Special Weapon 1 | . . . . 4 7 4 . . . . . . . . Slashing Weapon 2 | . . . . . 3 6 5 1 5 5 4 4 4 3 Naked Turns . | . . . . . . . . . . . . . . . Heaviest Build 40 | 11 27 37 40 40 17 23 22 29 33 33 35 39 26 26 Greatest Support 57 | 20 40 40 40 40 27 27 28 40 33 33 37 57 29 29 Greatest Overweight (x) 5 | . 1 . . . . . . . . . . 1 . 5 Average Overweight (x) . | . . . . . . . . . . . . . . . Largest Inventory Capacity 15 | 8 15 15 15 15 8 8 8 8 8 8 8 8 5 5 Average Capacity 9 | 5 9 15 15 9 8 8 8 8 8 8 8 7 5 5 Most Carried 15 | 5 11 15 15 15 8 8 8 8 7 8 8 8 5 5 Average Carried 8 | 2 7 13 14 8 7 7 7 6 6 7 7 6 4 3 Final Capacity 15 | 8 15 15 15 8 8 8 8 8 8 8 8 5 5 5 Final Carried 15 | 2 11 15 15 7 8 8 8 7 7 8 8 3 4 1 Class Distribution -------------------- 33% | Mutant 31% | Hacker-Sprinter 22% | Hacker-Ninja 5% | Hacker-Mutant Dominant Class ---------------- Mutant | -10/Materials Mutant | -9/Materials Mutant | -9/Storage Hacker-Sprinter | -8/Materials Hacker-Sprinter | -7/Factory Hacker-Sprinter | -6/Factory Hacker-Sprinter | -5/Factory Hacker-Sprinter | -4/Factory Hacker-Ninja | -4/Upper Caves Hacker-Ninja | -4/Upper Caves Hacker-Ninja | -3/Research Hacker-Ninja | -3/Testing Hacker-Mutant | -2/Research Hacker-Scout | -1/Access Resources | -11 -10 -9 -9 -8 -7 -6 -5 -4 -4 -4 -3 -3 -2 -1 ----------- Run | Yrd Mat Mat Sto Mat Fac Fac Fac Fac Upp Upp Res Tes Res Acc Matter Collected 1904 | 250 55 111 401 . 227 168 161 316 45 . 20 100 30 20 Remotely . | . . . . . . . . . . . . . . . Salvage Created 2189 | . 55 160 533 . 54 304 7 316 39 . 90 266 85 280 Parts 119 | . 8 11 24 . 3 13 . 14 3 . 2 14 4 23 Haulers Intercepted 5 | . . . 2 . 1 1 . . . . 1 . . . Recyclers Shooed 6 | . . . 4 . . 1 . 1 . . . . . . Parts Field Recycled . | . . . . . . . . . . . . . . . Retrieved Matter . | . . . . . . . . . . . . . . . Parts Self-Destructed 2 | . . . . . . . . . 2 . . . . . Prevented 1 | . . . . . . . . . 1 . . . . . Kills | -11 -10 -9 -9 -8 -7 -6 -5 -4 -4 -4 -3 -3 -2 -1 ------- Run | Yrd Mat Mat Sto Mat Fac Fac Fac Fac Upp Upp Res Tes Res Acc Combat Hostiles Destroyed 31 | . 3 4 10 . . 5 . 2 . . . 1 . 6 Melee 11 | . . . . . . 4 . 2 . . . 1 . 4 Guns 13 | . 3 4 4 . . . . . . . . . . 2 Cannons 6 | . . . 6 . . . . . . . . . . . Classes Destroyed 13 | . 1 4 4 . . 1 1 . . . . 2 . . Worker 3 | . . 1 . . . . . 1 . . . . . 1 Builder 1 | . . . . . . . 1 . . . . . . . Hauler 5 | . . . 2 . 1 1 . . . . 1 . . . Recycler 4 | . . . 2 . . . . 1 . . . 1 . . Operator 1 | . . . 1 . . . . . . . . . . . Watcher 4 | . . 1 . . . . . 1 . . . . 2 . Swarmer 11 | . 3 1 . . . 3 . . . . . . . 4 Grunt 8 | . . 2 6 . . . . . . . . . . . Brawler 1 | . . . 1 . . . . . . . . . . . Researcher 1 | . . . . . . . . . . . . 1 . . Sentry 5 | . . 1 3 . . 1 . . . . . . . . Hunter 3 | . . . . . . 1 . 2 . . . . . . Programmer 3 | . . . . . . . . . . . . 1 . 2 Decomposer 2 | . . . . . . . . . 2 . . . . . Best Kill Streak 5 | . 3 2 5 . 1 3 1 2 . . 1 1 1 4 Combat Bots Only 4 | . 3 2 4 . . 3 . 2 . . . 1 . 4 Max Kills in Single Turn 2 | . 1 2 1 . 1 1 1 1 1 . 1 1 1 1 Gunslinging . | . . . . . . . . . . . . . . . Exploded . | . . . . . . . . . . . . . . . Melee 1 | . . . . . . 1 . 1 . . . 1 . 1 Uniques/NPCs Destroyed . | . . . . . . . . . . . . . . . Combat | -11 -10 -9 -9 -8 -7 -6 -5 -4 -4 -4 -3 -3 -2 -1 -------- Run | Yrd Mat Mat Sto Mat Fac Fac Fac Fac Upp Upp Res Tes Res Acc Hostile Shots Fired 635 | . 10 12 37 10 . 93 17 36 6 4 . 184 70 156 Missed 307 | . 2 6 9 5 . 56 10 14 5 3 . 103 35 59 Damage Taken 4815 | . 50 49 289 57 . 288 208 246 18 16 . 1397 624 1573 Core 1848 | . 8 . 17 11 . 64 173 33 . . . 521 211 810 Absorbed by Shields . | . . . . . . . . . . . . . . . Ignored by Resistances 1351 | . 16 15 85 16 . 86 56 72 5 5 . 401 171 423 Core Remaining (%) 90 | 100 96 . 95 98 100 92 82 . . 97 . 59 85 . Volleys Fired 80 | . 7 11 45 1 4 1 . . . . . . . 11 Largest 2 | . 2 2 2 2 2 1 . . . . . . . 1 Hottest 67 | . 40 64 67 40 40 20 . . . . . . . 65 Shots Fired 142 | . 14 22 84 2 8 1 . . . . . . . 11 Gun 94 | . 14 19 45 1 4 . . . . . . . . 11 Cannon 41 | . . 3 38 . . . . . . . . . . . Launcher . | . . . . . . . . . . . . . . . Special 7 | . . . 1 1 4 1 . . . . . . . . Kinetic 124 | . 14 22 83 1 4 . . . . . . . . . Thermal 18 | . . . 1 1 4 1 . . . . . . . 11 Explosive . | . . . . . . . . . . . . . . . Electromagnetic . | . . . . . . . . . . . . . . . Robot Hit Streak 24 | . 3 5 24 17 24 . . . . . . . . 4 Robot Miss Streak 3 | . 1 3 2 . . 1 . . . . . . . 2 Penetration Max . | . . . . . . . . . . . . . . . Secondary Targets . | . . . . . . . . . . . . . . . Shots Hit Robots 154 | . 8 15 57 2 7 8 3 14 2 . 5 11 3 19 Core Hits 94 | . 3 11 45 . 2 5 . 7 2 . 2 4 2 11 Critical Kills 2 | . . . 1 . . 1 . . . . . . . . Critical Parts Destroyed 1 | . 1 . . . . . . . . . . . . . Critical Strikes 8 | . 1 . 1 . . 1 . 2 . . 2 . . 1 Destroy 2 | . 1 . 1 . . . . . . . . . . . Smash 1 | . . . . . . 1 . . . . . . . . Sever 5 | . . . . . . . . 2 . . 2 . . 1 Melee Attacks 96 | . . . . . . 15 7 20 2 . 11 20 6 15 Impact 14 | . . . . . . 5 5 4 . . . . . . Slashing 73 | . . . . . . 10 2 16 2 . 11 20 6 6 Piercing 9 | . . . . . . . . . . . . . . 9 Sneak Attacks 10 | . . . . . . 1 1 2 2 . 1 2 . 1 Combat Hostiles . | . . . . . . . . . . . . . . . Follow-up Attacks 3 | . . . . . . . 1 . . . . . . 2 Damage Inflicted 4850 | . 108 231 1077 21 79 489 135 552 145 . 216 713 181 903 Guns 1108 | . 108 164 452 11 45 . . . . . . . . 328 Cannons 682 | . . 67 615 . . . . . . . . . . . Explosions . | . . . . . . . . . . . . . . . Melee 3006 | . . . . . . 489 135 552 145 . 216 713 181 575 Ramming 10 | . . . 10 . . . . . . . . . . . Kinetic 1462 | . 108 231 1067 11 45 . . . . . . . . . Thermal 372 | . . . . 10 34 . . . . . . . . 328 Explosive . | . . . . . . . . . . . . . . . Electromagnetic . | . . . . . . . . . . . . . . . Impact 316 | . . . . . . 133 115 68 . . . . . . Slashing 2350 | . . . . . . 356 20 484 145 . 216 713 181 235 Piercing 340 | . . . . . . . . . . . . . . 340 Highest Corruption 6 | . . . . . . . 1 . . . . 2 . 6 Average Corruption 2 | . . . . . . . 1 . . . . 1 . 3 Corruption Purged . | . . . . . . . . . . . . . . . Corruption Blocked . | . . . . . . . . . . . . . . . Effects 2 | . . . . . . . . . . . . . . 2 Parts Rejected 1 | . . . . . . . . . . . . . . 1 Data Loss (major) 1 | . . . . . . . . . . . . . . 1 Overload Shots . | . . . . . . . . . . . . . . . Overflow Damage 333 | . . . . . . 38 56 62 . . 1 153 7 16 Projectiles . | . . . . . . . . . . . . . . . Explosions . | . . . . . . . . . . . . . . . Melee 333 | . . . . . . 38 56 62 . . 1 153 7 16 Knockbacks 14 | . . 5 6 . . 2 1 . . . . . . . Impact 2 | . . . . . . 1 1 . . . . . . . Kinetic 10 | . . 4 6 . . . . . . . . . . . Secondary 2 | . . 1 . . . 1 . . . . . . . . Self-Inflicted Damage . | . . . . . . . . . . . . . . . Shots . | . . . . . . . . . . . . . . . Rammed 5 | . . . 5 . . . . . . . . . . . Targets Rammed 5 | . . . 5 . . . . . . . . . . . Kicked . | . . . . . . . . . . . . . . . Crushed . | . . . . . . . . . . . . . . . Highest Temperature 375 | . . 36 108 . 20 7 93 143 5 . . 39 . 375 Average Temperature 37 | . . 18 34 . 12 1 31 80 3 . . 17 . 195 Received Heat Transfer 697 | . . 21 180 9 . 54 . 9 12 . . 313 99 . Effects 1 | . . . . . . . . . . . . . . 1 Shutdowns 1 | . . . . . . . . . . . . . . 1 Siege Activations . | . . . . . . . . . . . . . . . Robots Corrupted . | . . . . . . . . . . . . . . . Combat Hostiles . | . . . . . . . . . . . . . . . Parts Fried 2 | . . . . . . 1 1 . . . . . . . Impact Corruptions 4 | . . . . . . 1 2 1 . . . . . . Robots Melted . | . . . . . . . . . . . . . . . Combat Hostiles . | . . . . . . . . . . . . . . . Parts Melted 1 | . . . . . 1 . . . . . . . . . Heat Transferred 481 | . . . . 37 111 . . . . . . . . 333 Parts Sabotaged . | . . . . . . . . . . . . . . . Parts Stolen . | . . . . . . . . . . . . . . . Parts Stripped . | . . . . . . . . . . . . . . . Power Chain Reactions . | . . . . . . . . . . . . . . . Alert | -11 -10 -9 -9 -8 -7 -6 -5 -4 -4 -4 -3 -3 -2 -1 ------- Run | Yrd Mat Mat Sto Mat Fac Fac Fac Fac Upp Upp Res Tes Res Acc Peak Influence 337 | . 85 163 269 57 126 212 69 317 . . 89 114 337 252 Initial 176 | . . 30 23 37 11 33 32 28 . . 25 43 36 176 Average 78 | . 30 103 113 31 44 92 19 96 . . 51 40 91 204 Maximum Alert Level 1 | . . . 1 . . 1 . 1 . . . . 1 1 Low Security (%) 90 | 100 100 100 74 100 100 90 100 86 . . 100 100 87 58 Level 1 9 | . . . 25 . . 9 . 13 . . . . 12 41 Level 2 . | . . . . . . . . . . . . . . . Level 3 . | . . . . . . . . . . . . . . . Level 4 . | . . . . . . . . . . . . . . . Level 5 . | . . . . . . . . . . . . . . . High Security . | . . . . . . . . . . . . . . . Max Security . | . . . . . . . . . . . . . . . Squads Dispatched 15 | . . 1 1 . . 1 2 2 . . 1 3 3 1 Investigation 5 | . . . . . . 1 . 1 . . . 1 1 1 Extermination 1 | . . . . . . . . . . . . 1 . . Reinforcement 9 | . . 1 1 . . . 2 1 . . 1 1 2 . Assault . | . . . . . . . . . . . . . . . Garrison . | . . . . . . . . . . . . . . . Intercept . | . . . . . . . . . . . . . . . Searches Triggered . | . . . . . . . . . . . . . . . Construction Impeded . | . . . . . . . . . . . . . . . Haulers Reinforced 1 | . . . . . . . . . . . 1 . . . Active Scanning Responses . | . . . . . . . . . . . . . . . Cargo Convoy Interrupts . | . . . . . . . . . . . . . . . Stealth | -11 -10 -9 -9 -8 -7 -6 -5 -4 -4 -4 -3 -3 -2 -1 --------- Run | Yrd Mat Mat Sto Mat Fac Fac Fac Fac Upp Upp Res Tes Res Acc Distress Signals 5 | . . 1 2 . 1 . . . . . 1 . . . Communications Jammed . | . . . . . . . . . . . . . . . Distress Signals . | . . . . . . . . . . . . . . . Times Spotted 172 | . 4 9 13 9 8 14 5 21 4 1 3 42 28 11 Peak Tracking Total 15 | . 3 3 5 6 4 6 3 10 3 1 2 15 12 8 Tactical Retreats 26 | . . 2 . . 2 2 1 5 2 . . 7 4 1 Traps | -11 -10 -9 -9 -8 -7 -6 -5 -4 -4 -4 -3 -3 -2 -1 ------- Run | Yrd Mat Mat Sto Mat Fac Fac Fac Fac Upp Upp Res Tes Res Acc Traps Triggered 7 | . 1 . . . 1 . . 3 . . 1 . 1 . Indirectly . | . . . . . . . . . . . . . . . Trap Hack Attempts . | . . . . . . . . . . . . . . . Triggered . | . . . . . . . . . . . . . . . Disarmed . | . . . . . . . . . . . . . . . Reprogrammed . | . . . . . . . . . . . . . . . Reused . | . . . . . . . . . . . . . . . Traps Extracted . | . . . . . . . . . . . . . . . Installed . | . . . . . . . . . . . . . . . Triggered 1 | . . . . . . . . . 1 . . . . . Machines | -11 -10 -9 -9 -8 -7 -6 -5 -4 -4 -4 -3 -3 -2 -1 ---------- Run | Yrd Mat Mat Sto Mat Fac Fac Fac Fac Upp Upp Res Tes Res Acc Machines Disabled 2 | . . . . . . . . . . . . 2 . . Max in Single Turn 1 | . . . . . . . . . . . . 1 . . Machines Repaired . | . . . . . . . . . . . . . . . Machines Dismantled 1 | . . . 1 . . . . . . . . . . . Machines Sabotaged . | . . . . . . . . . . . . . . . Overloaded Fab Kills . | . . . . . . . . . . . . . . . Hacking | -11 -10 -9 -9 -8 -7 -6 -5 -4 -4 -4 -3 -3 -2 -1 --------- Run | Yrd Mat Mat Sto Mat Fac Fac Fac Fac Upp Upp Res Tes Res Acc Machines Accessed 36 | . 2 2 3 2 6 1 5 4 2 . 3 4 1 1 Terminals 28 | . 2 1 3 2 4 . 4 3 1 . 3 4 1 . Fabricators 3 | . . . . . . 1 1 . . . . . . 1 Repair Stations . | . . . . . . . . . . . . . . . Recycling Units 3 | . . 1 . . 1 . . 1 . . . . . . Scanalyzers 1 | . . . . . 1 . . . . . . . . . Garrison Access . | . . . . . . . . . . . . . . . Total Hacks 92 | . 4 2 4 6 14 2 19 12 10 . 6 8 3 2 Successful 65 | . 2 1 4 4 8 2 14 6 10 . 4 6 2 2 Failed 27 | . 2 1 . 2 6 . 5 6 . . 2 2 1 . Catastrophic 4 | . 1 . . . . . . 1 . . 1 1 . . Database Lockouts . | . . . . . . . . . . . . . . . Manual 63 | . 4 1 2 5 8 . 19 10 . . 4 7 3 . Terminals 73 | . 4 1 4 6 10 . 17 10 4 . 6 8 3 . Fabricators 6 | . . . . . . 2 2 . . . . . . 2 Repair Stations . | . . . . . . . . . . . . . . . Recycling Units 4 | . . 1 . . 1 . . 2 . . . . . . Scanalyzers 3 | . . . . . 3 . . . . . . . . . Garrison Access . | . . . . . . . . . . . . . . . Terminal Hacks 40 | . 2 . 4 3 3 . 8 2 10 . 2 4 2 . Record 11 | . . . . . 1 . . . 10 . . . . . Part Schematic 1 | . . . 1 . . . . . . . . . . . Prototype ID Bank 1 | . . . . . . . . . . . 1 . . . Open Door 2 | . . . 1 . . . . . . . . 1 . . Open DSF 2 | . . . . . 1 . . . . . 1 . . . Level Access Points 1 | . . . . . . . 1 . . . . . . . Branch Access Points 3 | . 1 . . 1 . . 1 . . . . . . . Alert Level 1 | . . . . . . . 1 . . . . . . . Unreport Threat 15 | . . . 2 2 1 . 3 2 . . . 3 2 . Locate Traps 1 | . . . . . . . 1 . . . . . . . Hauler Manifests 1 | . 1 . . . . . . . . . . . . . Zone Layout 1 | . . . . . . . 1 . . . . . . . Fabricator Hacks 4 | . . . . . . 2 . . . . . . . 2 Load Schematic 2 | . . . . . . 1 . . . . . . . 1 Build 2 | . . . . . . 1 . . . . . . . 1 Repair Station Hacks . | . . . . . . . . . . . . . . . Recycling Unit Hacks 3 | . . 1 . . . . . 2 . . . . . . Retrieve Matter 1 | . . . . . . . . 1 . . . . . . Retrieve Components 2 | . . 1 . . . . . 1 . . . . . . Scanalyzer 2 | . . . . . 2 . . . . . . . . . Insert Component 1 | . . . . . 1 . . . . . . . . . Analyze 1 | . . . . . 1 . . . . . . . . . Garrison Access Hacks . | . . . . . . . . . . . . . . . Unauthorized Hacks 16 | . . . . 1 3 . 6 2 . . 2 2 . . Terminals 15 | . . . . 1 3 . 5 2 . . 2 2 . . Track 1 | . . . . . . . 1 . . . . . . . Botnet 14 | . . . . 1 3 . 4 2 . . 2 2 . . Fabricators 1 | . . . . . . . 1 . . . . . . . Report 1 | . . . . . . . 1 . . . . . . . Repair Stations . | . . . . . . . . . . . . . . . Recycling Units . | . . . . . . . . . . . . . . . Scanalyzers . | . . . . . . . . . . . . . . . Garrison Access . | . . . . . . . . . . . . . . . Data Cores Recovered . | . . . . . . . . . . . . . . . Used . | . . . . . . . . . . . . . . . Hacking Detections 27 | . 1 1 2 1 5 1 4 4 1 . 2 3 1 1 Full Trace Events 5 | . . . . . . 1 . 1 1 . . 1 . 1 Feedback Events . | . . . . . . . . . . . . . . . Feedback Blocked . | . . . . . . . . . . . . . . . Robot Schematics Acquired 1 | . . . . . . . . . . . . 1 . . Robots Built 1 | . . . . . . . . . . . . . . 1 Authchips . | . . . . . . . . . . . . . . . Time 56 | . . . . . . . . . . . . . . 56 Total Robot Build Rating 6 | . . . . . . . . . . . . . . 6 Part Schematics Acquired 7 | . . . 1 . 1 . . . . . . 5 . . Parts Built . | . . . . . . . . . . . . . . . Authchips . | . . . . . . . . . . . . . . . Time 116 | . . . . . . 116 . . . . . . . . Total Part Build Rating . | . . . . . . . . . . . . . . . Parts Repaired . | . . . . . . . . . . . . . . . Time . | . . . . . . . . . . . . . . . Parts Recycled . | . . . . . . . . . . . . . . . Recycled Matter . | . . . . . . . . . . . . . . . Retrieved Matter . | . . . . . . . . . . . . . . . Retrieved Components 4 | . . 2 . . . . . 2 . . . . . . Parts Scanalyzed 1 | . . . . . 1 . . . . . . . . . Part Schematics Acquired 1 | . . . . . 1 . . . . . . . . . Parts Damaged . | . . . . . . . . . . . . . . . Bothacking | -11 -10 -9 -9 -8 -7 -6 -5 -4 -4 -4 -3 -3 -2 -1 ------------ Run | Yrd Mat Mat Sto Mat Fac Fac Fac Fac Upp Upp Res Tes Res Acc Used RIF Installer . | . . . . . . . . . . . . . . . Robots Hacked . | . . . . . . . . . . . . . . . Non-combat . | . . . . . . . . . . . . . . . Combat . | . . . . . . . . . . . . . . . Robot Hacks Applied . | . . . . . . . . . . . . . . . Relay Couplers Released . | . . . . . . . . . . . . . . . Fabnet Peak Effective % . | . . . . . . . . . . . . . . . Robots Rewired . | . . . . . . . . . . . . . . . Allies Hacked . | . . . . . . . . . . . . . . . Hacks Repelled . | . . . . . . . . . . . . . . . Allies | -11 -10 -9 -9 -8 -7 -6 -5 -4 -4 -4 -3 -3 -2 -1 -------- Run | Yrd Mat Mat Sto Mat Fac Fac Fac Fac Upp Upp Res Tes Res Acc Total Allies 1 | . . . . . . . . . . . . . . 1 Largest Group 1 | . . . . . . . . . . . . . . 1 Highest-Rated Group 65 | . . . . . . . . . . . . . . 65 Highest-Rated Ally 65 | . . . . . . . . . . . . . . 65 Total Orders 4 | . . . 3 1 . . . . . . . . . . EXPLORE 3 | . . . 2 1 . . . . . . . . . . RETURN 1 | . . . 1 . . . . . . . . . . . Ally Attacks . | . . . . . . . . . . . . . . . Total Damage . | . . . . . . . . . . . . . . . Kills . | . . . . . . . . . . . . . . . Allies Corrupted . | . . . . . . . . . . . . . . . Allies Melted . | . . . . . . . . . . . . . . . Intel | -11 -10 -9 -9 -8 -7 -6 -5 -4 -4 -4 -3 -3 -2 -1 ------- Run | Yrd Mat Mat Sto Mat Fac Fac Fac Fac Upp Upp Res Tes Res Acc Robot Analysis Total . | . . . . . . . . . . . . . . . Derelict Logs Recovered 2 | . . . . . . . . . 2 . . . . . Drone Launches 2 | . . . 2 . . . . . . . . . . . Drone Recoveries 1 | . . . 1 . . . . . . . . . . . Exploration | -11 -10 -9 -9 -8 -7 -6 -5 -4 -4 -4 -3 -3 -2 -1 ------------- Run | Yrd Mat Mat Sto Mat Fac Fac Fac Fac Upp Upp Res Tes Res Acc Turns Passed 4916 | 51 238 530 743 424 291 452 343 433 302 62 261 339 209 238 Spaces Moved 7425 | 38 150 292 312 631 853 555 889 747 980 106 534 609 401 328 Core 12 | 10 . . . . . . . . . . . 1 . 1 Treads 679 | . 24 292 312 51 . . . . . . . . . . Legs 154 | 28 126 . . . . . . . . . . . . . Wheels . | . . . . . . . . . . . . . . . Hover . | . . . . . . . . . . . . . . . Flight 6580 | . . . . 580 853 555 889 747 980 106 534 608 401 327 Fastest Speed 23 | 50 120 160 160 31 24 23 23 25 29 29 29 34 39 37 Average Speed 43 | 101 127 160 160 41 27 23 23 25 29 29 33 35 44 40 Slowest Speed 300 | 120 190 160 160 160 31 26 25 29 29 29 34 100 45 300 Overloaded Moves . | . . . . . . . . . . . . . . . Propulsion Burnouts . | . . . . . . . . . . . . . . . Robots Hopped 1 | . . . . 1 . . . . . . . . . . Cave-ins Triggered . | . . . . . . . . . . . . . . . Exploration Rate (%) 31 | 3 37 21 76 45 24 21 22 17 89 14 16 59 13 8 Regions Visited 14 Branch Regions 4 Pre-discovered Areas 2 | . . . . . . . . . 2 . . . . . Known Exits Taken 9 | . . . . 1 1 1 1 1 1 1 1 . 1 . Unknown Exits Taken 5 | 1 1 1 1 . . . . . . . . 1 . . Scrap Searched 2 | . . . . . . . . . 1 1 . . . . Spaces Dug 18 | . . . . . . 2 2 4 . . 3 5 . 2 Terrain Destroyed 18 | . . . . . . 2 2 4 . . 3 5 . 2 Melee 18 | . . . . . . 2 2 4 . . 3 5 . 2 Projectile . | . . . . . . . . . . . . . . . AOE . | . . . . . . . . . . . . . . . Terrain Rammed . | . . . . . . . . . . . . . . . Walls Destroyed . | . . . . . . . . . . . . . . . Machines Disabled . | . . . . . . . . . . . . . . . Actions | -11 -10 -9 -9 -8 -7 -6 -5 -4 -4 -4 -3 -3 -2 -1 --------- Run | Yrd Mat Mat Sto Mat Fac Fac Fac Fac Upp Upp Res Tes Res Acc Total 8781 | 50 184 333 462 791 894 851 1009 958 994 136 601 700 421 397 Wait 848 | . 8 17 71 130 9 251 91 132 11 30 20 50 4 24 Move 7409 | 37 149 291 311 628 852 554 888 746 979 105 533 608 400 328 Hop 1 | . . . . 1 . . . . . . . . . . Pick Up 95 | 7 11 8 6 8 5 12 2 13 1 1 4 5 5 7 Fast Attach 47 | 1 2 1 3 1 10 3 9 4 . . 4 5 2 2 Attach 50 | 5 . 1 1 8 1 5 . 12 1 . . 5 3 8 Detach 7 | . 1 . . . 1 1 1 2 . . 1 . . . Swap 15 | . 2 1 6 1 . 2 2 1 . . . . . . Drop 93 | . 4 3 10 12 10 9 11 12 . . 10 7 1 4 Fire 80 | . 7 11 45 1 4 1 . . . . . . . 11 Melee 90 | . . . . . . 13 5 20 2 . 11 20 6 13 Ram . | . . . . . . . . . . . . . . . Kick . | . . . . . . . . . . . . . . . Crush 5 | . . . 5 . . . . . . . . . . . Escape Stasis 34 | . . . . . . . . 16 . . 18 . . . Rewire . | . . . . . . . . . . . . . . . Trap . | . . . . . . . . . . . . . . . Miscellaneous 7 | . . . 4 1 2 . . . . . . . . . Route ------- -11/Scrapyard -10/Materials (discovered 2 exits: *Mat / Min) -9/Materials (discovered 2 exits: *Mat / *Sto) -9/Storage -8/Materials -7/Factory -6/Factory -5/Factory (discovered 6 exits: *Fac x4 / *Upp x2) -4/Factory (discovered 2 exits: *Upp x2) -4/Upper Caves -4/Upper Caves (discovered 2 exits: *Res / War) -3/Research (discovered 3 exits: *Res x2 / *Tes) -3/Testing -2/Research -1/Access History --------- Turn | Location | Event 6 | -11/Scrapyard | Discovered new exit (range 16) 52 | -11/Scrapyard | Entered Materials 70 | -10/Materials | Identified exit to Mines 210 | -10/Materials | Discovered new exit (range 15) 290 | -10/Materials | Entered another Materials area 290 | -9/Materials | Evolved 2 slots: Utility x2 306 | -9/Materials | Build established: Mutant 464 | -9/Materials | Discovered new exit (range 9) 638 | -9/Materials | Discovered new exit (range 3) 820 | -9/Materials | Entered Storage 1452 | -9/Storage | Discovered new exit (range 23) 1563 | -9/Storage | Entered Materials 1563 | -8/Materials | Accompanied by 1 ally 1563 | -8/Materials | Evolved 2 slots: Propulsion x2 1983 | -8/Materials | Discovered new exit (range 14) 1986 | -8/Materials | Identified exit to Factory 1987 | -8/Materials | Entered Factory 1987 | -7/Factory | Evolved 2 slots: Propulsion x1, Utility x1 2008 | -7/Factory | Build established: Hacker-Sprinter 2275 | -7/Factory | Discovered new exit (range 15) 2278 | -7/Factory | Identified exit to Factory 2278 | -7/Factory | Entered another Factory area 2278 | -6/Factory | Evolved 2 slots: Utility x2 2594 | -6/Factory | Spotted B-75 Beast 2725 | -6/Factory | Discovered new exit (range 6) 2727 | -6/Factory | Identified exit to Factory 2730 | -6/Factory | Entered another Factory area 2730 | -5/Factory | Evolved 2 slots: Power x1, Utility x1 2767 | -5/Factory | Identified exit to Upper Caves 2767 | -5/Factory | Identified exit to Factory 3073 | -5/Factory | Entered another Factory area 3073 | -4/Factory | Evolved 2 slots: Utility x2 3218 | -4/Factory | Found Prototype Hackware 3219 | -4/Factory | Identified Exp. Hacking Suite 3351 | -4/Factory | Discovered new exit (range 5) 3353 | -4/Factory | Discovered new exit (range 6) 3354 | -4/Factory | Identified exit to Upper Caves 3424 | -4/Factory | Lost 3 parts (1n2u) 3506 | -4/Factory | Entered Upper Caves 3532 | -4/Upper Caves | Learned location of Testing (-3) 3537 | -4/Upper Caves | Learned Research emergency access door positions 3537 | -4/Upper Caves | Learned Factory security intel 3537 | -4/Upper Caves | Learned Armory terminal intel 3537 | -4/Upper Caves | Learned Factory garrison access intel 3583 | -4/Upper Caves | Learned Research terminal intel 3697 | -4/Upper Caves | Build established: Hacker-Ninja 3792 | -4/Upper Caves | Learned location of Extension (-4) 3792 | -4/Upper Caves | Identified exit to Upper Caves 3792 | -4/Upper Caves | Learned location of 1 exit from Upper Caves 3793 | -4/Upper Caves | Attracted the attention of an 0b10 base 3808 | -4/Upper Caves | Entered another Upper Caves area 3809 | -4/Upper Caves | Identified exit to Research 3810 | -4/Upper Caves | Identified exit to Warlord 3870 | -4/Upper Caves | Entered Research 3870 | -3/Research | Evolved 2 slots: Utility x2 3872 | -3/Research | Loaded intel: 21 terminal locations 3909 | -3/Research | Identified exit to DSF 3966 | -3/Research | Found Prototype Slashing Weapon 3966 | -3/Research | Identified Vibroblade 3969 | -3/Research | Found Vibroblade 4008 | -3/Research | Discovered new exit (range 21) 4116 | -3/Research | Discovered new exit (range 8) 4117 | -3/Research | Discovered new exit (range 15) 4119 | -3/Research | Identified exit to Testing 4131 | -3/Research | Entered Testing 4188 | -3/Testing | Found Prototype Device 4188 | -3/Testing | Identified Exp. ECM Suite 4218 | -3/Testing | Scanned by Researcher 4233 | -3/Testing | Spotted Striker 4387 | -3/Testing | Spotted Striker 4390 | -3/Testing | Found Prototype Device 4391 | -3/Testing | Identified System Purifier 4398 | -3/Testing | Spotted Alpha 7 4400 | -3/Testing | Stole the SGEMP Prototype 4464 | -3/Testing | Discovered new exit (range 15) 4465 | -3/Testing | Lost 11 parts (2p3n6u) 4470 | -3/Testing | Entered Research 4470 | -2/Research | Evolved 2 slots: Propulsion x1, Utility x1 4671 | -2/Research | Discovered new exit (range 22) 4679 | -2/Research | Identified exit to Access 4679 | -2/Research | Entered Access 4679 | -1/Access | Evolved 2 slots: Utility x2 4740 | -1/Access | Fabricated I-47 Archangel? 4759 | -1/Access | Found Enh. Force Lance 4916 | -1/Access | Core integrity fell below 50% 4917 | -1/Access | Self-destructed Last Messages --------------- 04899_ Xenon Bombardment Thruster destroyed. 04901_ Slug penetrates Wall. 04901_ Xenon Bombardment Thruster destroyed. 04901_ Slug penetrates P-80 Master. 04901_ P-80 Master suffers critical hit (Destroy). 04902_ Slug penetrates Wall. 04903_ P-80 Master resets P-80 Master, system corruption cleaned. 04905_ P-80 Master destroyed. 04905_ Slug penetrates P-80 Master. 04905_ Slug penetrates Wall. 04909_ System corrupted: Enh. Force Lance rejected. 04909_ P-80 Master destroyed. 04911_ Wall collapses. 04911_ Slug penetrates Wall. 04911_ Lgt. Quantum Reactor destroyed. 04912_ Wall collapses. 04912_ Penetrated by Slug. 04912_ Slug penetrates Wall. 04914_ Penetrated by Slug. [Achievement: Tester] Map ----- +----------------------------------------------------+ | ?????????????????????????????????????????????????? | | ?????????????????????????????????????????????????? | | ?????????????????????????????????????????????????? | | ?????????????????????????????????????????????????? | | ?????????????????????????????????????????????????? | | ????????##?#????########?????????????????????????? | | ????????# ? ????# #?????????????????????????? | | ????????# ? ????# #?????????????????????????? | | ????????# # ????# #?????????????????????????? | | ?????#### #????# #?????????????????????????? | | ???### ###### #?????????????????????????? | | #### ## #?????????????????????????? | | !!!# ! ##/ #?????????????????????????? | | !!!# ## ! #?????????????????????????? | | !! # ## #?????????????????????????? | | # / ## #?????????????????????????? | | [ # ## #########?????????????????? | | ## # !#?????????????????? | | +### =[%** #?? # #?????????????????? | | # %* % #######+### #?????????????????? | | == = #*[ #?????????????????? | | " *% h/!|! #?????????????????? | | "%" ;h|! #?????????????????? | | "#######+#########+#+;*%! #?????????????????? | | ###?# #???????#[=! #?????????????????? | | #???# #???????# @ #?????????????????? | | #???# " ! #???????# #?????????????????? | | #???# """ #???????# #?????????????????? | | #???# """ #???????#########?????????????????? | | #???# " #?????????????????????????????????? | | #???# #?????????????????????????????????? | | #???#! #?????????????????????????????????? | | #???###########?????????????????????????????????? | | #???????????????????????????????????????????????? | | #???????????????????????????????????????????????? | | #???????????????????????????????????????????????? | | #???????????????????????????????????????????????? | | #???????????????????????????????????????????????? | | ##??????????????????????????????????????????????? | | #??????????????????????????????????????????????? | | +??????????????????????????????????????????????? | | #??????????????????????????????????????????????? | | #??????????????????????????????????????????????? | | #??????????????????????????????????????????????? | | #??????????????????????????????????????????????? | | #??????????????????????????????????????????????? | | #??????????????????????????????????????????????? | | ?#??????????????????????????????????????????????? | | ????????????????????????????????????????????????? | | ?????????????????????????????????????????????????? | +----------------------------------------------------+ Best States ------------- Heat Dissipation 52 Energy Generation 34 Energy Capacity 385 Matter Stores 300 Matter Capacity 300 Sight Range 22 Robot Scan Range 16 Terrain Scan Density 10 ECM Strength 3 Jamming Range 12 Cloak Strength 2 Additional Mass Support 20 Armor Coverage 300 Resistance: KI 20 Resistance: TH 20 Resistance: EX 20 Resistance: EM 20 Resistance: I 20 Resistance: S 20 Resistance: P 20 Evasion (%) 75 Targeting Accuracy 6 Recoil Reduction 2 Offensive Hacking 52 Defensive Hacking 10 Item Schematics ----------------- VTOL Module | -9/Storage | Hacked Imp. VTOL Module | -7/Factory | Scanalyzed Gravity Flail | -3/Testing | Archive Centrium Heavy Treads | -3/Testing | Archive Prc. Matter Filter | -3/Testing | Archive Exp. Shield Generator | -3/Testing | Archive Hvy. Tesla Rifle | -3/Testing | Archive Robot Schematics ------------------ I-47 Archangel | -3/Testing | Archive Fabricated ------------ I-47 Archangel | x1 | -1/Access Alien Tech Used ----------------- None Achievements -------------- Deadly Force Dodgeball, But With Guns Tester Challenges ------------ None Game ------ Seed CoreShrapnelCycler Manual? 0 Play Time 01:55:15 Cumulative 58.1 hours Start 2024.04.29 @ 22:04:54 End 2024.07.06 @ 15:49:18 Sessions 5 Manual Loads 0 Difficulty Adventurer Special Mode None Game No. 76 Rogue 17 Adventurer 59 Explorer 0 Win Type - Total 0 Types 0/0/0/0/0/0/0/0/0 Lore% 27 Gallery% 50 Achievement% 42 Wizard Run 0 Options --------- Layout 0 ASCII 0 Keyboard 0 Movement Mouse Keybinds 0 Fullscreen 2 Font 24/Smallcaps Map View 76x50 Zoom Use 0% Tactical HUD 1 Map Filters NONE Filters NONE Steam 1 RUN: 48eaab3e-75d9-4440-bc42-f5637585e86e